bitfinex-derivatives/quotes_SOLF0:USTF0_20250224
["timestamp","ask_amount","ask_price","bid_price","bid_amount"]
[1740407875806,191.0,157.58,157.47,1.9488]
[1740407876006,0.04804032,157.54,157.51,0.0414602]
[1740407877708,6.39514032,157.54,157.51,0.0414602]
[1740407878009,0.04804032,157.54,157.51,0.0414602]
[1740407878808,6.3472,157.53,157.51,0.0414602]
[1740407879005,0.04804032,157.54,157.51,0.0414602]
[1740407879415,4.032e-05,157.54,157.53,6.3472]
[1740407880406,4.032e-05,157.54,157.52,6.3475]
[1740407880713,4.032e-05,157.54,157.51,0.0414602]
[1740407881509,4.032e-05,157.54,157.51,6.3891602]
[1740407881805,4.032e-05,157.54,157.51,0.0414602]
[1740407882012,4.032e-05,157.54,157.53,6.3472]
[1740407882414,4.032e-05,157.54,157.51,0.0414602]
[1740407882609,4.032e-05,157.54,157.53,6.3472]
[1740407882804,4.032e-05,157.54,157.51,0.0414602]
[1740407883316,6.34694032,157.54,157.51,0.0414602]
[1740407883608,4.032e-05,157.54,157.51,0.0414602]
[1740407883801,4.032e-05,157.54,157.53,6.3472]
[1740407885712,102.02709081,157.67,157.66,6.342]
[1740407886009,46.65739081,157.67,157.66,6.342]
[1740407886210,159.14728188,157.76,157.58,11.1]
[1740407886408,159.14728188,157.76,157.59,12.28517519]
[1740407886610,159.14728188,157.76,157.6,1.26903553]
[1740407886914,155.68048188,157.76,157.74,6.3384]
[1740407887111,145.29238188,157.76,157.73,11.12]
[1740407887306,77.99918605,157.76,157.73,11.12]
[1740407887508,23.77318605,157.76,157.75,6.3383]
[1740407888107,10.81528605,157.76,157.75,6.3383]
[1740407888310,8.605e-05,157.76,157.73,0.04172445]
[1740407888510,8.605e-05,157.76,157.75,17.4583]
[1740407888709,6.684e-05,157.77,157.75,11.12]
[1740407889810,6.684e-05,157.77,157.76,6.3379]
[1740407891711,6.684e-05,157.77,157.76,39.25401424]
[1740407892813,6.684e-05,157.77,157.76,50.37401424]
[1740407893309,6.684e-05,157.77,157.76,59.01119838]
[1740407893513,6.3331,157.88,157.78,6.3368]
[1740407893911,1.9504,157.97,157.76,52.67329838]
[1740407894516,6.3334,157.88,157.76,52.67329838]
[1740407894721,6.38183251,157.88,157.85,0.04377503]
[1740407894924,1.9504,157.97,157.76,52.67329838]
[1740407895216,0.0400871,157.88,157.85,0.04065464]
[1740407895617,1.9504,157.97,157.76,26.53418287]
[1740407895819,0.04224204,157.88,157.85,0.04041564]
[1740407896015,1.9504,157.97,157.76,26.53418287]
[1740407896215,1.9504,157.97,157.85,0.04826846]
[1740407896414,0.04591846,157.88,157.85,0.04826846]
[1740407896619,1.9504,157.97,157.76,45.89629965]
[1740407896821,0.04544443,157.88,157.85,0.04633183]
[1740407897224,6.333,157.89,157.76,45.89629965]
[1740407897424,0.0486834,157.88,157.85,0.04551525]
[1740407897626,1.9504,157.97,157.76,45.89629965]
[1740407897818,0.0439296,157.88,157.85,0.0461313]
[1740407898221,1.9504,157.97,157.76,34.77629965]
[1740407898422,0.04222318,157.88,157.85,0.04306361]
[1740407898721,1.9504,157.97,157.76,34.77629965]
[1740407899027,0.04709368,157.88,157.85,0.0432422]
[1740407899415,6.3315,157.93,157.83,6.3351]
[1740407899623,0.04389951,157.88,157.85,6.37586468]
[1740407899925,6.3307,157.94,157.85,6.3342]
[1740407900120,0.04761291,157.88,157.85,6.38082108]
[1740407900424,0.04761291,157.88,157.85,0.04662108]
[1740407901523,0.04761291,157.88,157.85,8.68380522]
[1740407901921,1.9504,157.97,157.85,8.68380522]
[1740407902118,1.9504,157.97,157.85,8.63718414]
[1740407902929,6.3326,157.9,157.84,8.63718414]
[1740407903322,6.3326,157.9,157.85,0.04523053]
[1740407903523,1.9504,157.97,157.85,0.04523053]
[1740407903925,1.9504,157.97,157.89,0.04073645]
[1740407904117,6.3307,157.94,157.89,0.04073645]
[1740407905727,6.3303,157.95,157.89,0.04073645]
[1740407906228,6.3303,157.95,157.9,6.3323]
[1740407906429,6.3299,157.96,157.89,0.04073645]
[1740407906729,1.9504,157.97,157.89,0.04073645]
[1740407907030,8.28,157.97,157.92,6.3315]
[1740407907224,1.9504,157.97,157.88,8.63718414]
[1740407907425,6.3306,157.95,157.93,0.04490655]
[1740407907727,1.9504,157.97,157.88,8.63718414]
[1740407907924,188.9622,158.0,157.93,8.63718414]
[1740407908119,6.3311,157.93,157.92,25.70939965]
[1740407908320,6.3311,157.93,157.92,16.64239965]
[1740407908519,6.3311,157.93,157.92,0.48609965]
[1740407909020,0.04184622,157.94,157.91,8.59503766]
[1740407909426,0.04184622,157.94,157.92,6.3312]
[1740407909624,0.04184622,157.94,157.91,8.59503766]
[1740407910027,6.3315,157.92,157.91,8.59503766]
[1740407910223,0.04184622,157.94,157.77,69.70430804]
[1740407910429,19.05,157.99,157.77,69.70430804]
[1740407910628,19.05,157.93,157.84,6.3346]
[1740407911029,19.05,157.93,157.85,6.3343]
[1740407911230,19.05,157.93,157.77,69.70430804]
[1740407911431,0.04548143,157.91,157.87,0.04623604]
[1740407911632,6.3324,157.9,157.87,0.04623604]
[1740407912029,6.37778143,157.91,157.87,0.04623604]
[1740407912224,0.04548143,157.91,157.87,0.04623604]
[1740407912829,6.3331,157.88,157.87,0.04623604]
[1740407913530,0.04548143,157.91,157.87,0.04623604]
[1740407913729,6.3328,157.89,157.87,0.04623604]
[1740407914133,0.04548143,157.91,157.87,0.04623604]
[1740407915032,6.3331,157.88,157.87,0.04623604]
[1740407915628,6.3328,157.89,157.87,0.04623604]
[1740407915829,19.09548143,157.91,157.87,0.04623604]
[1740407916631,0.04548143,157.91,157.87,0.04623604]
[1740407917133,0.04548143,157.91,157.9,6.3323]
[1740407918036,0.04548143,157.91,157.87,0.04623604]
[1740407919435,0.04548143,157.91,157.9,6.3323]
[1740407919633,0.04548143,157.91,157.87,0.04623604]
[1740407920042,0.04548143,157.91,157.88,6.3328]
[1740407920240,19.05,157.99,157.87,0.04623604]
[1740407920548,191.0,158.03,157.9,69.70430804]
[1740407920743,6.329,157.99,157.9,69.70430804]
[1740407921145,191.0,158.03,157.9,69.70430804]
[1740407921344,6.329,157.99,157.9,69.70430804]
[1740407921544,0.04552591,157.98,157.97,167.62587813]
[1740407921845,6.37462591,157.98,157.97,167.62587813]
[1740407922552,0.04552591,157.98,157.97,167.62587813]
[1740407923546,6.37462591,157.98,157.97,167.62587813]
[1740407924059,6.37462591,157.98,157.97,158.06337813]
[1740407924247,6.37462591,157.98,157.97,26.0928408]
[1740407924452,6.37462591,157.98,157.97,55.7046421]
[1740407924746,19.05,158.05,157.97,55.7046421]
[1740407925144,6.3291,157.98,157.97,55.7046421]
[1740407925554,25.3791,157.98,157.97,55.7046421]
[1740407925750,25.3791,157.98,157.97,33.6117421]
[1740407926051,29.97,157.98,157.83,1.8772]
[1740407927052,0.04508024,157.92,157.89,0.04364128]
[1740407931551,0.04508024,157.92,157.89,6.37634128]
[1740407931751,0.04508024,157.92,157.89,0.04364128]
[1740407931950,8.024e-05,157.92,157.91,6.3319]
[1740407932955,8.024e-05,157.92,157.9,6.3322]
[1740407933156,8.024e-05,157.92,157.89,0.04364128]
[1740407933659,8.024e-05,157.92,157.89,6.37604128]
[1740407933859,8.024e-05,157.92,157.91,6.11048211]
[1740407936558,8.024e-05,157.92,157.89,0.04364128]
[1740407937463,19.05,157.91,157.89,0.04364128]
[1740407939160,19.05,157.9,157.89,0.04364128]
[1740407939863,25.3823,157.9,157.89,0.04364128]
[1740407940064,19.05,157.9,157.8,26.34184425]
[1740407940265,19.05,157.92,157.8,26.34184425]
[1740407940561,19.05,157.88,157.8,26.34184425]
[1740407940965,19.05,157.85,157.8,26.34184425]
[1740407941266,19.05,157.85,157.82,0.04574395]
[1740407942055,19.05,157.83,157.82,0.04574395]
[1740407942966,25.3851,157.83,157.82,0.04574395]
[1740407943161,19.05,157.85,157.82,0.04574395]
[1740407943364,210.05,157.85,157.82,0.04574395]
[1740407943564,191.0,157.85,157.82,0.04574395]
[1740407943864,356.86,157.97,157.82,0.04574395]
[1740407944059,165.86,157.97,157.81,5.7816]
[1740407944259,1.11744584,157.96,157.81,5.7816]
[1740407944457,165.86,157.97,157.81,5.7816]
[1740407944665,19.05,157.96,157.81,5.7816]
[1740407945067,25.3802,157.96,157.87,0.041882]
[1740407945263,210.05,157.96,157.87,0.041882]
[1740407945658,19.05,157.94,157.87,0.041882]
[1740407946458,19.05,157.91,157.87,0.041882]
[1740407946662,10.84,157.95,157.87,0.041882]
[1740407946862,19.05,157.94,157.87,0.041882]
[1740407947062,165.86,157.97,157.87,0.041882]
[1740407947268,165.86,157.97,157.81,5.7816]
[1740407947460,165.86,157.97,157.9,0.04254404]
[1740407947665,184.91,157.97,157.9,0.04254404]
[1740407948464,165.86,157.97,157.9,6.37474404]
[1740407948869,165.86,157.97,157.9,0.04254404]
[1740407949072,165.86,157.97,157.9,6.37484404]
[1740407949273,165.86,157.97,157.91,3.6974]
[1740407949472,10.82,158.01,157.91,5.6233]
[1740407949863,10.82,158.01,157.94,0.04033019]
[1740407950065,244.6481145,158.06,157.94,0.04033019]
[1740407950265,10.84,158.05,157.91,5.6233]
[1740407950472,201.84,158.05,157.98,0.0431628]
[1740407950673,210.05,158.04,157.98,0.0431628]
[1740407950874,6.3287,157.99,157.98,0.0431628]
[1740407951275,25.3787,157.99,157.98,0.0431628]
[1740407951474,191.0,158.03,157.91,5.6233]
[1740407951671,19.05,158.01,157.91,5.6233]
[1740407952174,19.05,158.01,157.91,1.8531]
[1740407952375,19.05,157.99,157.85,6.3342]
[1740407952574,0.04295464,157.98,157.94,1.916e-05]
[1740407952775,220.87,157.97,157.83,1.8319]
[1740407952975,6.3311,157.93,157.86,6.3336]
[1740407953176,29.87,157.97,157.83,1.8319]
[1740407953574,6.3304,157.95,157.83,1.8319]
[1740407953775,0.04408303,157.92,157.88,0.0476506]
[1740407955772,0.04408303,157.92,157.88,0.0009506]
[1740407955773,25.3827,157.89,157.88,0.0009506]
[1740407956178,36.2027,157.89,157.88,0.0009506]
[1740407956373,227.2027,157.89,157.88,0.0009506]
[1740407958380,228.3201928,157.89,157.88,0.0009506]
[1740407958777,19.05,157.87,157.66,5.7126]
[1740407959077,1.1174928,157.86,157.66,5.7126]
[1740407959280,19.05,157.84,157.66,5.7126]
[1740407959471,210.05,157.83,157.66,5.7126]
[1740407959669,19.05,157.84,157.66,5.7126]
[1740407959873,192.11700914,157.83,157.66,5.7126]
[1740407960081,0.04237408,157.76,157.73,0.04300023]
[1740407960274,6.3371,157.79,157.66,5.7126]
[1740407960577,10.82,157.83,157.66,5.7126]
[1740407961578,0.0399829,157.76,157.73,0.04215937]
[1740407961780,10.82,157.83,157.66,5.7126]
[1740407961979,6.3369,157.79,157.74,6.3387]
[1740407962175,10.82,157.83,157.66,5.7126]
[1740407962376,10.8,157.85,157.66,5.7126]
[1740407962579,10.8,157.9,157.66,5.7126]
[1740407963072,0.04423863,157.8,157.79,6.3367]
[1740407963277,10.8,157.9,157.7,10.8]
[1740407963479,0.0407376,157.81,157.78,0.04860023]
[1740407963669,19.05,157.87,157.7,10.8]
[1740407963875,19.05,157.87,157.66,5.7126]
[1740407964071,0.04665576,157.8,157.77,0.04697209]
[1740407964282,19.05,157.86,157.66,5.7126]
[1740407964478,0.04583096,157.8,157.77,0.04001646]
[1740407964776,6.3371,157.78,157.77,1.646e-05]
[1740407965082,0.04583096,157.8,157.77,1.646e-05]
[1740407965481,6.3371,157.78,157.77,1.646e-05]
[1740407972879,25.3871,157.78,157.77,1.646e-05]
[1740407974483,26.50290802,157.78,157.77,1.646e-05]
[1740407975884,19.05,157.76,157.59,3.9312]
[1740407976085,19.05,157.74,157.59,3.9312]
[1740407976286,19.05,157.72,157.58,35.07554542]
[1740407976479,6.3447,157.6,157.58,35.07554542]
[1740407976685,6.3447,157.6,157.55,1.9332]
[1740407976876,195.79,157.64,157.54,3.9312]
[1740407977082,0.04105947,157.59,157.56,0.04140298]
[1740407980386,6.3456,157.57,157.56,0.04140298]
[1740407980686,0.04105947,157.59,157.56,0.04140298]
[1740407981190,6.3456,157.57,157.56,0.04140298]
[1740407981890,0.04105947,157.59,157.44,12.1847484]
[1740407982088,195.79,157.64,157.44,12.1847484]
[1740407982589,6.3472,157.54,157.48,6.3489]
[1740407982790,6.3472,157.54,157.44,12.1847484]
[1740407982791,195.79,157.64,157.44,12.1847484]
[1740407982993,19.05,157.62,157.41,19.47370117]
[1740407983181,6.3474,157.53,157.52,0.04835449]
[1740407983381,6.3474,157.53,157.41,19.47370117]
[1740407983585,6.3478,157.52,157.51,0.04002176]
[1740407983786,0.04242422,157.49,157.41,19.47370117]
[1740407983987,6.3478,157.52,157.41,19.47370117]
[1740407984291,0.04492426,157.47,157.45,0.0431309]
[1740407984683,191.0,157.6,157.48,6.349]
[1740407984684,6.3475,157.53,157.48,6.349]
[1740407985092,0.04321917,157.52,157.49,0.04074856]
[1740407985392,0.04321917,157.52,157.49,6.38954856]
[1740407985590,6.3475,157.53,157.49,6.38954856]
[1740407986093,6.3466,157.55,157.51,6.3479]
[1740407986789,6.38937401,157.55,157.51,0.04023401]
[1740407986991,6.38937401,157.55,157.52,6.3475]
[1740407987191,191.0,157.6,157.52,3.982]
[1740407987586,6.3468,157.54,157.52,3.982]
[1740407987888,195.73,157.64,157.52,3.982]
[1740407987889,176.68,157.64,157.52,3.982]
[1740407988393,0.04778298,157.6,157.56,1.99e-05]
[1740407988589,6.3456,157.57,157.56,1.99e-05]
[1740407989796,25.3956,157.57,157.56,1.99e-05]
[1740407990395,6.3456,157.57,157.56,1.99e-05]
[1740407991404,25.3956,157.57,157.56,1.99e-05]
[1740407992406,6.3456,157.57,157.56,1.99e-05]
[1740407993309,36.1356,157.57,157.56,1.99e-05]
[1740407994105,25.3956,157.57,157.56,1.99e-05]
[1740407994311,6.3456,157.57,157.56,1.99e-05]
[1740407994506,25.3956,157.57,157.56,1.99e-05]
[1740407995109,12.6804,157.59,157.56,1.99e-05]
[1740407995305,6.3455,157.58,157.56,1.99e-05]
[1740407995809,0.04778298,157.6,157.56,1.99e-05]
[1740407996904,6.39228298,157.6,157.56,1.99e-05]
[1740407997104,19.09778298,157.6,157.56,1.99e-05]
[1740407997610,19.05,157.59,157.56,1.99e-05]
[1740407997810,0.04778298,157.6,157.56,1.99e-05]
[1740407999613,6.345,157.59,157.56,1.99e-05]
[1740408000311,0.04778298,157.6,157.56,1.99e-05]
[1740408000711,0.04778298,157.6,157.56,6.3459199]
[1740408000911,6.39228298,157.6,157.56,6.3459199]
[1740408001306,363.5437,157.62,157.56,1.99e-05]
[1740408001611,166.2,157.62,157.57,1.9297]
[1740408002118,166.2,157.62,157.57,3.8784]
[1740408002304,201.7,157.69,157.62,6.3435]
[1740408002607,166.18,157.7,157.57,3.8784]
[1740408003913,166.18,157.7,157.63,6.3429]
[1740408004116,6.3415,157.68,157.62,0.04769666]
[1740408004315,166.18,157.7,157.62,0.04769666]
[1740408005215,6.3399,157.71,157.62,0.04769666]
[1740408005612,31.6812,157.77,157.62,0.04769666]
[1740408006007,31.6812,157.77,157.57,3.8784]
[1740408006206,31.6812,157.77,157.68,0.0486459]
[1740408008516,6.3407,157.69,157.68,0.0486459]
[1740408008912,31.6812,157.77,157.68,0.0486459]
[1740408009117,6.3405,157.7,157.68,0.0486459]
[1740408009520,31.6812,157.77,157.68,0.0486459]
[1740408009720,12.6312,157.77,157.68,0.0486459]
[1740408010126,6.3396,157.72,157.68,0.0486459]
[1740408010417,31.6812,157.77,157.68,0.0486459]
[1740408010823,6.3405,157.7,157.68,0.0486459]
[1740408011524,31.6812,157.77,157.68,0.0486459]
[1740408011525,12.6312,157.77,157.68,0.0486459]
[1740408011822,31.6812,157.77,157.68,0.0486459]
[1740408012020,6.3407,157.69,157.68,4.59e-05]
[1740408012221,10.68,157.69,157.62,8.73370117]
[1740408013330,0.04300296,157.67,157.64,0.0470251]
[1740408013821,6.3424,157.65,157.64,0.0470251]
[1740408016828,6.3448,157.59,157.57,1.9297]
[1740408017231,6.3448,157.59,157.53,1.8559]
[1740408017429,185.15,157.66,157.53,3.7962]
[1740408018028,0.04062563,157.61,157.58,0.04434098]
[1740408018629,6.3448,157.59,157.58,4.098e-05]
[1740408019730,8.226,157.59,157.58,4.098e-05]
[1740408021930,10.2038,157.59,157.58,4.098e-05]
[1740408022131,29.2538,157.59,157.58,4.098e-05]
[1740408023634,8.3226,157.59,157.58,4.098e-05]
[1740408024534,6.3448,157.59,157.58,4.098e-05]
[1740408025532,10.70062563,157.61,157.58,4.098e-05]
[1740408025936,17.04482563,157.61,157.58,4.098e-05]
[1740408026133,6.38482563,157.61,157.58,4.098e-05]
[1740408026835,0.04062563,157.61,157.58,4.098e-05]
[1740408029834,6.3431,157.64,157.58,4.098e-05]
[1740408030035,166.1,157.66,157.58,4.098e-05]
[1740408030738,6.3415,157.68,157.63,6.3428]
[1740408031038,1.348e-05,157.64,157.63,6.3428]
[1740408031434,6.34,157.71,157.67,6.3414]
[1740408031629,168.0729,157.76,157.53,193.9046]
[1740408031937,19.05,157.75,157.53,193.9046]
[1740408032140,23.80964828,157.75,157.53,1.9046]
[1740408032340,0.04358216,157.66,157.62,3.945e-05]
[1740408032543,10.68358216,157.66,157.62,3.945e-05]
[1740408032741,6.3438,157.62,157.53,1.9046]
[1740408033236,10.64,157.66,157.55,8.73370117]
[1740408033442,0.04467936,157.59,157.56,0.040675]
[1740408033643,10.64,157.66,157.55,8.73370117]
[1740408034041,0.04668286,157.59,157.56,0.04853872]
[1740408034237,10.64,157.66,157.55,8.73370117]
[1740408034440,0.04432038,157.59,157.56,0.04237576]
[1740408034633,1.9235,157.7,157.55,8.73370117]
[1740408034839,1.9235,157.7,157.56,1.8341]
[1740408035440,6.3423,157.66,157.6,6.3443]
[1740408035641,1.9235,157.7,157.61,1.8893]
[1740408035943,0.0468603,157.65,157.61,0.04408044]
[1740408038846,6.3435,157.63,157.61,0.04408044]
[1740408039039,0.0468603,157.65,157.61,0.04408044]
[1740408039445,6.3436,157.62,157.61,0.04408044]
[1740408039644,0.0468603,157.65,157.61,0.04408044]
[1740408039945,6.3894603,157.65,157.61,0.04408044]
[1740408040246,0.0468603,157.65,157.61,0.04408044]
[1740408040648,191.0,157.79,157.61,0.04408044]
[1740408040649,178.7329,157.76,157.61,0.04408044]
[1740408040851,178.7329,157.76,157.57,1.8893]
[1740408041251,176.82,157.76,157.57,1.8893]
[1740408041650,0.02489027,157.68,157.65,0.04061538]
[1740408042249,166.16,157.76,157.65,0.04061538]
[1740408042445,166.16,157.76,157.57,1.8893]
[1740408043351,166.16,157.76,157.65,0.04551279]
[1740408043551,166.16,157.76,157.57,1.8893]
[1740408043752,166.16,157.76,157.69,0.0477152]
[1740408044049,166.16,157.76,157.71,0.04415529]
[1740408044244,166.16,157.76,157.57,1.8893]
[1740408044450,6.3387,157.75,157.72,0.04486248]
[1740408044647,1.8163,157.81,157.58,12.6903]
[1740408044849,1.8163,157.81,157.72,6.38612354]
[1740408044850,6.3379,157.77,157.72,6.38612354]
[1740408045043,1.9354,157.84,157.72,6.3395]
[1740408045251,10.64,157.83,157.73,0.04437869]
[1740408045448,31.6254,157.84,157.64,10.64]
[1740408045647,31.6254,157.84,157.76,0.04859496]
[1740408045843,31.6254,157.84,157.65,1.8289]
[1740408046048,31.6254,157.84,157.72,6.3395]
[1740408046347,29.71,157.83,157.73,0.04828889]
[1740408046552,6.3382,157.76,157.73,0.04221713]
[1740408046851,6.3382,157.76,157.73,0.04655913]
[1740408047853,6.3376,157.77,157.73,0.04655913]
[1740408048052,6.3376,157.77,157.72,6.3393]
[1740408048253,6.3376,157.77,157.73,0.0452413]
[1740408048947,222.6454,157.84,157.73,0.0452413]
[1740408048948,6.338,157.76,157.73,0.0452413]
[1740408049148,6.338,157.76,157.72,6.3393]
[1740408049350,6.338,157.76,157.73,0.04610012]
[1740408049853,6.3372,157.78,157.74,6.3386]
[1740408050054,192.9354,157.84,157.67,1.9518]
[1740408050256,166.1,157.85,157.74,0.04665901]
[1740408050457,166.1,157.85,157.68,12.6823]
[1740408050756,166.1,157.85,157.78,0.0488099]
[1740408051551,1.8555,157.84,157.78,0.0488099]
[1740408051957,6.3367,157.79,157.78,0.0488099]
[1740408052454,6.3396,157.72,157.67,1.9518]
[1740408052654,19.05,157.8,157.66,1.8734]
[1740408052855,19.05,157.78,157.63,8.73370117]
[1740408053156,6.3411,157.69,157.63,15.07670117]
[1740408053559,0.0475117,157.68,157.64,0.0461739]
[1740408055455,6.3424,157.65,157.64,0.0461739]
[1740408056454,0.0475117,157.68,157.64,0.0461739]
[1740408057360,6.3419,157.67,157.64,0.0461739]
[1740408057755,0.0475117,157.68,157.64,0.0461739]
[1740408057956,6.3424,157.65,157.64,0.0461739]
[1740408059857,6.3446,157.6,157.56,3.8699]
[1740408060557,6.3451,157.59,157.52,0.73918456]
[1740408061066,0.04634297,157.57,157.54,0.04693397]
[1740408061263,10.64,157.62,157.49,5.762]
[1740408061462,0.04611568,157.57,157.54,0.04344488]
[1740408061662,12.5306,157.61,157.49,5.762]
[1740408061865,0.04501875,157.57,157.54,0.04582686]
[1740408062265,6.3464,157.55,157.54,2.686e-05]
[1740408066267,25.3964,157.55,157.54,2.686e-05]
[1740408066468,6.3464,157.55,157.54,2.686e-05]
[1740408068171,0.04501875,157.57,157.54,2.686e-05]
[1740408068873,6.3464,157.55,157.54,2.686e-05]
[1740408070174,25.3964,157.55,157.54,2.686e-05]
[1740408072772,29.2097,157.55,157.54,2.686e-05]
[1740408074680,10.1597,157.55,157.54,2.686e-05]
[1740408074876,6.3464,157.55,157.54,2.686e-05]
[1740408075774,25.3964,157.55,157.54,2.686e-05]
[1740408078975,19.05,157.55,157.37,3.8289]
[1740408079179,19.05,157.51,157.37,1.8799]
[1740408079375,22.8543,157.5,157.32,1.9594]
[1740408079579,10.62,157.49,157.38,6.3532]
[1740408079880,3.8043,157.5,157.33,1.9233]
[1740408080277,0.04583637,157.43,157.4,0.044922]
[1740408080479,10.62,157.49,157.4,0.044922]
[1740408080681,10.62,157.49,157.33,1.9233]
[1740408081182,6.3521,157.41,157.35,6.3542]
[1740408081381,10.62,157.49,157.33,1.9233]
[1740408081583,0.04351342,157.4,157.36,0.04136939]
[1740408081881,3.9275,157.48,157.33,1.9233]
[1740408082084,0.042828,157.4,157.36,0.04429917]
[1740408082384,6.3513,157.43,157.33,1.9233]
[1740408082684,0.04659681,157.4,157.36,0.04488843]
[1740408082985,0.04659681,157.4,157.35,6.3541]
[1740408083178,0.04659681,157.4,157.36,0.04096321]
[1740408084182,6.3535,157.38,157.36,0.04096321]
[1740408085384,0.04659681,157.4,157.36,0.04096321]
[1740408085987,6.3536,157.38,157.36,0.04096321]
[1740408086288,0.04659681,157.4,157.36,0.04096321]
[1740408086483,6.3529,157.39,157.36,0.04096321]
[1740408087990,0.04659681,157.4,157.36,0.04096321]
[1740408088195,166.28,157.46,157.36,0.04096321]
[1740408088490,172.6302,157.46,157.33,1.9233]
[1740408088691,166.28,157.46,157.33,1.9233]
[1740408088892,172.63,157.46,157.42,6.3516]
[1740408089486,172.67683165,157.46,157.42,6.39769384]
[1740408090691,166.32683165,157.46,157.42,0.04609384]
[1740408091292,6.3505,157.45,157.42,0.04609384]
[1740408091586,166.32683165,157.46,157.42,0.04609384]
[1740408092593,6.3512,157.43,157.42,0.04609384]
[1740408093594,166.32683165,157.46,157.42,0.04609384]
[1740408095095,6.3512,157.43,157.42,0.04609384]
[1740408096599,6.3512,157.43,157.42,9.384e-05]
[1740408097501,16.9312,157.43,157.42,9.384e-05]
[1740408098800,35.9812,157.43,157.42,9.384e-05]
[1740408101802,16.9312,157.43,157.42,9.384e-05]
[1740408103706,35.9812,157.43,157.42,9.384e-05]
[1740408105209,6.3527,157.4,157.34,39.41942813]
[1740408105409,29.63,157.43,157.34,39.41942813]
[1740408105606,29.63,157.43,157.34,33.06492813]
[1740408105807,6.3529,157.39,157.34,39.41962813]
[1740408106105,29.63,157.43,157.34,39.41962813]
[1740408106106,29.63,157.43,157.34,33.06492813]
[1740408106305,0.04435781,157.38,157.35,0.04807989]
[1740408106708,6.39775781,157.38,157.35,0.04807989]
[1740408107109,0.04435781,157.38,157.35,0.04807989]
[1740408107610,6.3539,157.37,157.35,0.04807989]
[1740408107908,0.04435781,157.38,157.35,0.04807989]
[1740408108311,6.3539,157.37,157.35,0.04807989]
[1740408108609,0.04435781,157.38,157.35,0.04807989]
[1740408108807,0.04435781,157.38,157.34,8.73370117]
[1740408108808,6.3544,157.35,157.34,8.106e-05]
[1740408109009,1.9682,157.37,157.33,38.05316718]
[1740408109412,21.0182,157.37,157.33,38.05316718]
[1740408109607,0.04435781,157.38,157.33,38.05316718]
[1740408110012,0.04435781,157.38,157.34,0.04626163]
[1740408111912,19.09435781,157.38,157.24,36.05713906]
[1740408112112,19.05,157.36,157.24,37.91003906]
[1740408112313,29.59,157.35,157.24,37.91003906]
[1740408112513,6.356,157.32,157.24,36.05713906]
[1740408112709,19.05,157.31,157.24,36.05713906]
[1740408113110,0.04375209,157.29,157.26,0.0415723]
[1740408116007,0.04375209,157.29,157.13,5.81607114]
[1740408116213,19.05,157.3,157.18,6.3612]
[1740408116412,19.05,157.3,157.14,1.8347]
[1740408116710,25.4068,157.3,157.14,1.8347]
[1740408117019,19.05,157.3,157.17,1.8529]
[1740408117217,0.04669898,157.25,157.22,0.04693885]
[1740408117416,10.58,157.24,157.22,0.04693885]
[1740408118412,10.58,157.24,157.13,5.81607114]
[1740408119019,10.58,157.24,157.16,6.362]
[1740408119222,10.58,157.24,157.1,1.9253]
[1740408119616,0.04313754,157.19,157.15,0.04457365]
[1740408120512,10.56,157.26,157.15,0.04457365]
[1740408120711,10.56,157.26,157.14,1.9411]
[1740408121519,10.56,157.26,157.15,6.3625]
[1740408121719,0.04841253,157.22,157.18,0.04039836]
[1740408124618,0.04841253,157.22,157.1,1.9253]
[1740408125018,20.9439,157.24,157.1,1.9253]
[1740408125622,0.04255772,157.19,157.15,0.04340447]
[1740408125817,10.6,157.18,157.15,0.04340447]
[1740408126222,10.6,157.18,156.96,175.64461659]
[1740408126223,29.65,157.18,156.96,175.64461659]
[1740408126425,29.65,157.18,157.0,1.9083]
[1740408126426,1.8202,157.17,157.0,1.9083]
[1740408126626,6.3624,157.16,157.03,6.3671]
[1740408127232,6.3633,157.14,157.01,6.3681]
[1740408127526,0.04406559,157.11,156.96,175.64461659]
[1740408127731,6.3654,157.08,156.96,175.64461659]
[1740408128026,1.8202,157.07,156.96,175.64461659]
[1740408128230,166.58,157.06,156.96,175.64461659]
[1740408128626,166.58,157.06,157.0,0.04588889]